bitfinex/quotes_SOLUSD_20250517
["timestamp","ask_amount","ask_price","bid_price","bid_amount"]
[1747497258236,18.8,167.4,167.37,26.0]
[1747497258435,18.8,167.4,167.37,31.97464464]
[1747497265654,134.4,167.41,167.37,31.97464464]
[1747497270935,134.4,167.41,167.37,46.91161064]
[1747497271457,18.8,167.43,167.37,46.91161064]
[1747497271744,18.8,167.45,167.41,26.0]
[1747497272443,18.8,167.45,167.42,5.97300203]
[1747497277153,134.4,167.46,167.42,5.97300203]
[1747497277353,153.2,167.46,167.42,5.97300203]
[1747497279857,159.171618,167.46,167.41,31.97331798]
[1747497280072,159.17174486,167.46,167.4,5.97358609]
[1747497280250,159.17174486,167.46,167.36,14.93731479]
[1747497280454,134.4,167.45,167.37,26.0]
[1747497280756,134.4,167.45,167.37,5.9747864]
[1747497281063,134.4,167.45,167.37,31.9747864]
[1747497281861,5.97228858,167.44,167.37,31.9747864]
[1747497284571,153.18,167.45,167.37,31.9747864]
[1747497284572,134.4,167.43,167.37,31.9747864]
[1747497286480,140.37275546,167.43,167.37,31.9747864]
[1747497290777,134.4,167.42,167.37,31.9747864]
[1747497292678,140.37310293,167.42,167.37,31.9747864]
[1747497292859,134.4,167.42,167.37,31.9747864]
[1747497297574,153.2,167.42,167.37,31.9747864]
[1747497297889,153.2,167.42,167.4,26.0]
[1747497297890,134.4,167.42,167.4,26.0]
[1747497299692,18.8,167.43,167.41,5.97335881]
[1747497300390,18.8,167.43,167.4,31.97358349]
[1747497300993,18.78,167.45,167.4,31.97358349]
[1747497301185,37.58,167.45,167.4,31.97358349]
[1747497301687,18.78,167.45,167.4,31.97358349]
[1747497301872,18.78,167.45,167.4,46.90787261]
[1747497302193,153.2,167.46,167.4,46.90787261]
[1747497303286,153.2,167.46,167.4,31.97358349]
[1747497305295,153.2,167.46,167.4,46.90787261]
[1747497312372,153.2,167.46,167.4,31.97358349]
[1747497323119,134.4,167.46,167.4,46.90787261]
[1747497323322,153.2,167.46,167.4,46.90787261]
[1747497326218,134.4,167.46,167.4,46.90787261]
[1747497326400,153.2,167.46,167.4,46.90787261]
[1747497329926,134.4,167.46,167.4,46.90787261]
[1747497330126,153.2,167.46,167.4,46.90787261]
[1747497334218,134.4,167.46,167.4,46.90787261]
[1747497334428,18.78,167.45,167.4,46.90787261]
[1747497336640,134.4,167.46,167.4,46.90787261]
[1747497336937,153.18,167.46,167.4,46.90787261]
[1747497337512,18.78,167.45,167.4,46.90787261]
[1747497338223,134.4,167.46,167.4,46.90787261]
[1747497340520,134.4,167.46,167.4,5.97358349]
[1747497340717,140.37180768,167.46,167.38,5.97442944]
[1747497341027,1.5355,167.45,167.38,26.0]
[1747497341226,5.97228858,167.44,167.38,31.97441733]
[1747497344545,134.4,167.43,167.38,31.97441733]
[1747497344726,140.37269346,167.43,167.38,31.97441733]
[1747497345827,134.4,167.43,167.38,31.97441733]
[1747497346851,140.37271389,167.43,167.38,31.97441733]
[1747497347553,134.4,167.43,167.38,31.97441733]
[1747497348254,153.18,167.43,167.38,31.97441733]
[1747497348425,134.4,167.43,167.38,46.91049093]
[1747497348627,153.18,167.43,167.38,46.91049093]
[1747497352546,134.4,167.43,167.38,46.91049093]
[1747497352757,153.18,167.43,167.38,46.91049093]
[1747497356464,134.4,167.43,167.38,46.91049093]
[1747497356670,153.18,167.43,167.38,46.91049093]
[1747497357476,134.4,167.43,167.38,46.91049093]
[1747497357651,153.18,167.43,167.38,46.91049093]
[1747497358470,134.4,167.43,167.38,46.91049093]
[1747497359658,18.78,167.45,167.38,46.91049093]
[1747497359972,18.78,167.47,167.38,46.91049093]
[1747497360466,134.4,167.48,167.38,46.91049093]
[1747497360657,18.78,167.47,167.38,46.91049093]
[1747497367565,134.4,167.48,167.4,18.64964886]
[1747497367773,134.4,167.48,167.44,26.0]
[1747497367975,44.60030711,167.49,167.44,26.0]
[1747497368285,25.82030711,167.49,167.44,26.0]
[1747497368786,25.82030711,167.49,167.45,5.97193191]
[1747497381290,25.82030711,167.49,167.44,31.97216564]
[1747497381701,31.79098365,167.49,167.42,31.97300203]
[1747497381880,31.79098365,167.49,167.42,5.97300203]
[1747497382411,31.79098365,167.49,167.41,26.0]
[1747497382412,134.4,167.48,167.41,5.97333345]
[1747497382580,134.4,167.48,167.37,21.58423615]
[1747497382780,134.4,167.47,167.4,26.0]
[1747497383298,5.9715753,167.46,167.4,31.97361287]
[1747497384901,140.37131491,167.47,167.4,31.97361287]
[1747497385507,18.78,167.46,167.4,31.97361287]
[1747497386470,5.97159324,167.46,167.4,31.97361287]
[1747497386902,24.75159324,167.46,167.4,31.97361287]
[1747497387200,5.97159324,167.46,167.4,31.97361287]
[1747497387678,24.75159324,167.46,167.4,31.97361287]
[1747497391502,134.4,167.47,167.4,31.97361287]
[1747497391711,18.78,167.45,167.4,31.97361287]
[1747497392085,134.4,167.47,167.4,31.97361287]
[1747497392386,134.4,167.51,167.44,26.0]
[1747497392576,18.78,167.5,167.44,26.0]
[1747497393487,18.78,167.5,167.45,5.97193191]
[1747497398229,24.75021632,167.5,167.45,5.97193191]
[1747497398726,24.75021632,167.5,167.44,26.0]
[1747497399311,24.75021632,167.5,167.42,5.97289492]
[1747497401523,140.37076997,167.49,167.42,5.97289492]
[1747497401916,134.4,167.49,167.42,5.97289492]
[1747497402929,140.37054423,167.49,167.42,5.97289492]
[1747497404614,134.4,167.48,167.42,5.97289492]
[1747497408427,140.37089511,167.48,167.42,5.97289492]
[1747497410135,134.4,167.48,167.42,5.97289492]
[1747497411136,140.37087063,167.48,167.42,5.97289492]
[1747497411842,134.4,167.48,167.42,5.97289492]
[1747497415139,140.37090849,167.48,167.42,5.97289492]
[1747497417035,134.4,167.48,167.42,5.97289492]
[1747497418549,134.4,167.48,167.42,20.90539999]
[1747497418749,18.78,167.47,167.42,20.90539999]
[1747497423067,18.78,167.47,167.42,5.97289492]
[1747497426076,134.4,167.48,167.42,5.97289492]
[1747497426077,134.4,167.48,167.42,20.90539999]
[1747497426373,134.4,167.48,167.45,26.0]
[1747497428703,134.4,167.48,167.45,31.9716142]
[1747497431505,37.54,167.5,167.45,31.9716142]
[1747497448935,18.78,167.5,167.45,31.9716142]
[1747497452018,24.7501813,167.5,167.45,26.0]
[1747497452608,134.4,167.49,167.45,26.0]
[1747497454332,140.37076578,167.49,167.43,5.9724278]
[1747497468165,159.13076578,167.49,167.43,5.9724278]
[1747497471763,18.76,167.48,167.43,5.9724278]
[1747497475166,24.73089327,167.48,167.43,5.9724278]
[1747497476264,18.76,167.48,167.43,5.9724278]
[1747497478174,24.73088894,167.48,167.43,5.9724278]
[1747497478469,134.4,167.47,167.42,26.0]
[1747497479846,134.4,167.47,167.42,31.97298882]
[1747497480049,134.4,167.47,167.45,26.0]
[1747497480244,18.76,167.48,167.46,5.9715753]
[1747497480968,37.52,167.5,167.46,5.9715753]
[1747497483374,134.4,167.51,167.46,5.9715753]
[1747497483564,134.4,167.54,167.49,26.0]
[1747497483740,153.16,167.54,167.49,26.0]
[1747497485571,153.16,167.54,167.5,5.97014925]
[1747497487781,134.4,167.54,167.5,5.97014925]
[1747497487981,153.16,167.54,167.5,20.89552238]
[1747497488172,134.4,167.54,167.5,20.89552238]
[1747497488564,21.55862231,167.56,167.53,26.0]
[1747497488759,134.4,167.57,167.53,26.0]
[1747497490183,134.4,167.57,167.53,31.96887001]
[1747497494491,134.4,167.57,167.53,26.0]
[1747497494675,140.36772279,167.57,167.52,26.0]
[1747497495591,18.74,167.56,167.52,26.0]
[1747497496288,24.70809082,167.56,167.53,26.0]
[1747497497972,24.70809082,167.56,167.5,5.97003042]
[1747497501885,24.70809082,167.56,167.49,33.58003249]
[1747497505481,24.70809082,167.56,167.49,31.97043249]
[1747497506500,24.70809082,167.56,167.48,6.4879]
[1747497506501,134.4,167.55,167.45,5.97193191]
[1747497506702,134.4,167.54,167.45,5.97193191]
[1747497506882,37.38964886,167.53,167.45,26.0]
[1747497507085,37.38964886,167.53,167.44,13.57117548]
[1747497507386,37.38964886,167.53,167.45,26.0]
[1747497507894,5.96943648,167.52,167.45,31.97172712]
[1747497512505,134.4,167.51,167.45,31.97172712]
[1747497512706,18.74,167.5,167.45,31.97172712]
[1747497516824,24.71019626,167.5,167.45,31.97172712]
[1747497517400,24.71019626,167.5,167.45,26.0]
[1747497518810,18.74,167.5,167.45,31.97189143]
[1747497519011,24.71020871,167.5,167.45,31.97189143]
[1747497520532,24.71020871,167.5,167.45,26.0]
[1747497523743,24.71020871,167.5,167.45,31.97189552]
[1747497525416,18.74,167.5,167.45,31.97189552]
[1747497531443,134.4,167.51,167.45,31.97189552]
[1747497531744,18.74,167.5,167.45,31.97189552]
[1747497542544,18.72,167.49,167.45,31.97189552]
[1747497543089,134.4,167.48,167.39,22.8916427]
[1747497543247,134.4,167.47,167.39,22.8916427]
[1747497543664,134.4,167.47,167.42,26.0]
[1747497544875,5.9715753,167.46,167.42,26.0]
[1747497548581,134.4,167.45,167.42,26.0]
[1747497549258,140.3719596,167.45,167.42,26.0]
[1747497549891,140.3719596,167.45,167.4,31.97361971]
[1747497550173,140.3719596,167.45,167.39,13.93127473]
[1747497550476,140.3719596,167.45,167.39,39.93127473]
[1747497550685,140.3719596,167.45,167.39,26.0]
[1747497551671,140.3719596,167.45,167.39,31.97401357]
[1747497552062,140.3719596,167.45,167.39,26.0]
[1747497553261,18.64964886,167.44,167.35,5.97550044]
[1747497553461,5.97300203,167.42,167.35,5.97550044]
[1747497553679,134.4,167.41,167.35,5.97550044]
[1747497553884,134.4,167.41,167.35,31.97550044]
[1747497554772,140.37343262,167.41,167.35,31.97550044]
[1747497557275,24.69382284,167.4,167.35,31.97550044]
[1747497557480,134.4,167.39,167.35,31.97550044]
[1747497558474,140.37410458,167.39,167.3,22.74676136]
[1747497558669,134.4,167.38,167.29,5.97764361]
[1747497558883,134.4,167.38,167.27,5.97835834]
[1747497558884,37.36964886,167.37,167.27,5.97835834]
[1747497559063,37.36964886,167.37,167.28,26.0]
[1747497559760,5.9751434,167.36,167.29,26.0]
[1747497561889,153.04964886,167.35,167.29,26.0]
[1747497562092,153.12,167.34,167.29,26.0]
[1747497564005,140.37621466,167.33,167.26,13.72377334]
[1747497564172,140.37621466,167.33,167.26,7.7451]
[1747497564372,140.37621466,167.33,167.26,33.7451]
[1747497564686,140.37621466,167.33,167.26,13.72378674]
[1747497565369,140.37621466,167.33,167.26,7.7451]
[1747497565794,140.37621466,167.33,167.26,13.72377379]
[1747497566368,18.74,167.32,167.26,13.72377379]
[1747497567475,18.74,167.32,167.26,28.67056321]
[1747497570783,18.74,167.32,167.26,13.72377379]
[1747497572399,18.74,167.33,167.29,26.0]
[1747497572898,98.59565981,167.35,167.29,26.0]
[1747497574181,104.57137341,167.35,167.29,26.0]
[1747497574380,104.57137341,167.35,167.27,5.97803362]
[1747497574886,104.57137341,167.35,167.28,26.0]
[1747497575285,104.57137341,167.35,167.27,5.97803362]
[1747497575477,134.4,167.34,167.27,5.97803362]
[1747497576405,5.97621466,167.33,167.27,5.97803362]
[1747497579416,140.37659191,167.32,167.26,39.72371484]
[1747497579784,134.4,167.32,167.26,39.72371484]
[1747497580607,140.37661807,167.32,167.26,39.72371484]
[1747497582511,134.4,167.32,167.26,39.72371484]
[1747497582687,153.14,167.32,167.26,39.72371484]
[1747497585009,159.11657568,167.32,167.26,39.72371484]
[1747497585201,159.11657568,167.32,167.26,33.7451]
[1747497588007,159.11657568,167.32,167.26,39.72380351]
[1747497589018,159.11657568,167.32,167.26,33.52540351]
[1747497589205,159.11657568,167.32,167.26,27.5467]
[1747497589407,159.11657568,167.32,167.26,26.0]
[1747497590715,134.4,167.31,167.26,31.97865674]
[1747497591420,134.4,167.31,167.26,26.0]
[1747497592709,140.37693032,167.31,167.26,31.97864384]
[1747497594226,134.4,167.31,167.26,31.97864384]
[1747497596230,140.37697217,167.31,167.26,31.97864384]
[1747497596737,134.4,167.3,167.26,26.0]
[1747497598236,140.37736664,167.3,167.26,26.0]
[1747497598806,140.37736664,167.3,167.24,31.9793123]
[1747497600636,134.4,167.29,167.24,31.9793123]
[1747497604023,140.37773253,167.29,167.24,31.9793123]
[1747497605244,134.4,167.28,167.24,26.0]
[1747497605735,18.74,167.3,167.24,31.9791954]
[1747497606035,134.4,167.31,167.24,46.92777229]
[1747497606209,134.4,167.31,167.25,26.0]
[1747497606532,134.4,167.31,167.29,26.0]
[1747497606719,37.46,167.32,167.29,26.0]
[1747497606923,18.72,167.32,167.29,26.0]
[1747497607220,18.74,167.35,167.3,5.97728631]
[1747497607821,49.12445092,167.36,167.3,5.97728631]
[1747497608129,67.86445092,167.36,167.3,20.92050209]
[1747497608330,49.12445092,167.36,167.33,26.0]
[1747497609310,49.12445092,167.36,167.34,5.97585753]
[1747497610641,134.4,167.37,167.34,5.97585753]
[1747497611036,134.4,167.37,167.34,20.91550136]
[1747497612645,134.4,167.42,167.37,26.0]
[1747497613454,18.84,167.43,167.38,5.97442944]
[1747497616826,18.84,167.43,167.38,22.43060304]
[1747497617230,18.84,167.43,167.38,28.62990304]
[1747497617742,153.24,167.45,167.38,28.62990304]
[1747497618052,18.84,167.44,167.38,28.62990304]
[1747497618347,18.84,167.44,167.36,5.97489636]
[1747497618721,18.84,167.44,167.37,26.0]
[1747497619621,5.97264528,167.43,167.37,26.0]
[1747497619845,5.97264528,167.43,167.35,26.0]
[1747497620553,134.4,167.42,167.35,26.0]
[1747497620921,5.97335881,167.41,167.35,31.97545325]
[1747497622753,134.4,167.42,167.35,31.97545325]
[1747497622943,18.84,167.41,167.35,31.97545325]
[1747497623640,18.84,167.41,167.35,46.91420437]
[1747497624945,18.84,167.41,167.35,48.10884575]
[1747497627348,134.4,167.45,167.35,48.10884575]
[1747497627548,18.82,167.44,167.35,48.10884575]
[1747497629426,18.82,167.44,167.35,46.91420437]
[1747497630336,24.79250164,167.44,167.35,46.91420437]
[1747497630749,24.79250164,167.44,167.35,31.97545325]
[1747497630954,5.97300203,167.42,167.35,5.97545325]
[1747497631263,24.81300203,167.42,167.3,7.6284]
[1747497631436,134.4,167.41,167.33,26.0]
[1747497632370,5.97371565,167.4,167.33,26.0]
[1747497632542,5.97371565,167.4,167.32,5.97631593]
[1747497632862,5.97371565,167.4,167.33,26.0]
[1747497634163,5.97371565,167.4,167.33,31.97611992]
[1747497634532,5.97371565,167.4,167.34,26.0]
[1747497634744,134.4,167.39,167.31,5.97663782]
[1747497634939,18.82,167.38,167.31,31.97663782]
[1747497635553,18.82,167.38,167.31,26.0]
[1747497635554,134.4,167.37,167.31,26.0]
[1747497636680,5.9751434,167.36,167.31,26.0]
[1747497636977,5.9751434,167.36,167.31,31.97684171]
[1747497637346,140.37490744,167.37,167.31,31.97684171]
[1747497641795,134.4,167.36,167.31,31.97684171]
[1747497642158,140.37521568,167.36,167.31,31.97684171]
[1747497643282,140.37521568,167.36,167.31,26.0]
[1747497643874,140.37521568,167.36,167.31,31.97679722]
[1747497647465,140.37521568,167.36,167.31,26.0]
[1747497647881,140.37521568,167.36,167.3,26.0]
[1747497648197,159.21521568,167.36,167.3,26.0]
[1747497650692,134.4,167.35,167.3,26.0]
[1747497651070,5.97585753,167.34,167.3,26.0]
[1747497655903,140.37564081,167.35,167.3,26.0]
[1747497657606,134.4,167.34,167.26,13.86292281]
[1747497657896,134.4,167.33,167.27,26.0]
[1747497658072,18.92,167.32,167.27,26.0]
[1747497658469,18.92,167.32,167.25,26.0]
[1747497658690,134.4,167.31,167.23,5.97978831]
[1747497658996,134.4,167.31,167.24,26.0]
[1747497659807,5.97728631,167.3,167.24,31.97927158]
[1747497660008,5.97728631,167.3,167.25,26.0]
[1747497660309,134.4,167.29,167.25,26.0]
[1747497661012,134.4,167.29,167.22,1.6519]
[1747497661379,134.4,167.29,167.21,31.98027894]
[1747497661690,134.4,167.28,167.21,31.98027894]
[1747497661885,140.37829602,167.28,167.2,5.98086124]
[1747497662399,140.37829602,167.28,167.21,26.0]
[1747497663398,140.37829602,167.28,167.22,5.98014591]
[1747497663595,134.4,167.28,167.22,5.98014591]
[1747497664203,153.38,167.28,167.26,26.0]
[1747497664405,18.98,167.28,167.26,26.0]
[1747497665288,153.38,167.31,167.27,5.97835834]
[1747497669287,153.38,167.31,167.26,26.0]
[1747497669705,159.35695051,167.31,167.26,26.0]
[1747497669889,153.38,167.31,167.26,31.97865044]
[1747497670382,19.08,167.3,167.26,31.97865044]
[1747497674382,153.46,167.31,167.26,31.97865044]
[1747497684625,159.43696278,167.31,167.26,31.97865044]
[1747497686907,2.22105809,167.3,167.26,31.97865044]
[1747497687622,4.44247832,167.29,167.26,31.97865044]
[1747497688325,4.44247832,167.29,167.26,26.0]
[1747497688501,5.97732368,167.3,167.26,26.0]
[1747497690024,159.43705892,167.31,167.26,26.0]
[1747497690196,159.43705892,167.31,167.26,31.97851637]
[1747497690526,8.88819928,167.3,167.26,31.97851637]
[1747497691323,4.44409964,167.29,167.26,31.97851637]
[1747497691919,159.43705892,167.31,167.26,31.97851637]
[1747497693925,4.44773326,167.3,167.26,26.0]
[1747497694131,134.4,167.29,167.23,12.44248165]
[1747497694321,134.4,167.29,167.23,5.97968165]
[1747497694823,2.22348308,167.28,167.22,5.98001581]
[1747497695012,134.4,167.27,167.22,5.98001581]
[1747497695517,134.4,167.27,167.21,7.57096798]
[1747497695726,134.4,167.27,167.21,5.98036798]
[1747497695923,140.37871577,167.26,167.19,5.98121897]
[1747497696115,140.37871577,167.26,167.18,14.56216339]
[1747497696116,19.18,167.25,167.18,14.56216339]
[1747497696301,134.4,167.24,167.17,7.56432311]
[1747497696509,134.4,167.24,167.18,26.0]
[1747497697129,134.4,167.24,167.17,7.56432311]
[1747497697327,134.4,167.24,167.18,26.0]
[1747497697533,4.44773326,167.23,167.18,26.0]
[1747497697709,134.4,167.22,167.16,5.98222666]
[1747497697916,140.38016959,167.22,167.16,5.98222666]
[1747497698603,140.38016959,167.22,167.15,9.52018844]
[1747497699032,134.4,167.22,167.15,9.52018844]
[1747497699323,19.42,167.21,167.17,26.0]
[1747497700033,19.42,167.21,167.18,5.98157674]
[1747497703234,19.42,167.21,167.17,5.98193455]
[1747497707720,19.42,167.21,167.17,46.93677094]
[1747497713937,136.9,167.22,167.17,46.93677094]
[1747497714144,136.9,167.22,167.17,48.48397094]
[1747497717054,136.9,167.22,167.17,33.52913455]
[1747497717232,136.9,167.22,167.17,31.98193455]
[1747497719648,25.33955664,167.24,167.17,31.98193455]
[1747497720152,18.64964886,167.23,167.17,26.0]
[1747497720336,20.19784886,167.23,167.16,5.98217276]
[1747497720541,20.19784886,167.23,167.15,5.98256506]
[1747497721665,5.98014591,167.22,167.14,5.98300825]
[1747497721959,136.0,167.26,167.14,20.94052889]
[1747497722130,136.0,167.26,167.15,14.26321029]
[1747497722131,19.38,167.25,167.15,14.26321029]
[1747497722334,19.74,167.24,167.18,26.0]
[1747497723860,19.74,167.24,167.19,5.98121897]
[1747497724039,19.38,167.25,167.19,5.98121897]
[1747497724249,19.72,167.23,167.19,5.98121897]
[1747497724563,19.72,167.23,167.18,26.0]
[1747497724873,19.72,167.23,167.17,5.98157945]
[1747497725850,25.69981366,167.23,167.17,5.98157945]
[1747497727772,19.72,167.23,167.17,5.98157945]
[1747497728885,4.43679949,167.22,167.17,5.98157945]
[1747497729871,182.29274886,167.21,167.13,4.27580921]
[1747497730043,18.64964886,167.17,167.13,4.27580921]
[1747497730242,18.64964886,167.15,167.13,4.27580921]
[1747497730557,18.64964886,167.15,167.13,2.63270921]
[1747497730558,36.54964886,167.14,167.13,2.63270921]
[1747497730787,172.54964886,167.14,167.13,2.63270921]
[1747497730980,189.61799244,167.14,167.13,2.63270921]
[1747497731161,228.65799244,167.14,167.13,2.63270921]
[1747497732081,74.75799244,167.14,167.13,2.63270921]
[1747497732390,18.64964886,167.04,166.98,9.37184085]
[1747497732555,19.66,167.03,166.98,9.37184085]
[1747497732893,18.64964886,167.02,166.98,9.37184085]
[1747497733249,18.64964886,167.04,166.97,14.30102784]
[1747497733563,18.64964886,167.02,166.95,5.98948539]
[1747497734586,18.64964886,167.02,166.94,5.99017611]
[1747497734762,24.49234886,166.98,166.93,0.18596655]
[1747497735084,18.64964886,166.96,166.93,0.18596655]
[1747497735660,87.61426836,166.95,166.93,0.18596655]
[1747497736574,18.64964886,166.94,166.93,0.18596655]
[1747497737279,101.61559722,166.94,166.93,0.18596655]
[1747497738980,82.96594836,166.94,166.93,0.18596655]
[1747497741084,101.61559722,166.94,166.93,0.18596655]
[1747497742388,107.60577333,166.94,166.93,0.18596655]
[1747497742783,101.61559722,166.94,166.93,0.18596655]
[1747497743490,107.60577333,166.94,166.93,0.18596655]
[1747497744362,133.60577333,166.94,166.93,0.18596655]
[1747497748693,107.60577333,166.94,166.93,0.18596655]
[1747497758630,125.52577333,166.94,166.93,0.18596655]
[1747497761032,129.85669698,166.94,166.93,0.18596655]
[1747497761902,125.52577333,166.94,166.93,0.18596655]
[1747497762303,107.60577333,166.94,166.93,0.18596655]
[1747497762539,127.46577333,166.94,166.93,0.18596655]
[1747497762718,101.61559722,166.94,166.93,0.18596655]
[1747497762904,102.84594836,166.94,166.93,0.18596655]
[1747497766232,127.48577333,166.94,166.93,0.18596655]
[1747497769034,113.19533411,166.94,166.93,0.18596655]
[1747497770335,131.84498297,166.94,166.93,0.18596655]
[1747497772039,136.22363902,166.94,166.93,0.18596655]
[1747497772335,138.41675794,166.94,166.93,0.18596655]
[1747497774340,153.53675794,166.94,166.93,0.18596655]
[1747497774521,153.53675794,166.94,166.87,6.5203]
[1747497774522,18.64964886,166.93,166.87,6.5203]
[1747497774834,18.64964886,166.91,166.87,6.5203]
[1747497775132,4.37865605,166.9,166.87,6.5203]
[1747497775332,5.99232981,166.88,166.85,1.6385]
[1747497775537,24.13920964,166.87,166.85,1.6385]
[1747497775723,26.55831856,166.87,166.85,1.6385]
[1747497775922,26.55831856,166.87,166.83,6.5765]
[1747497776117,4.42250947,166.86,166.83,6.5765]
[1747497776339,136.8,166.85,166.81,1.5816]
[1747497776514,4.35920964,166.84,166.81,1.5816]
[1747497777232,2.19311892,166.83,166.81,1.5816]
[1747497777637,4.35920964,166.82,166.81,1.5816]
[1747497779028,4.35920964,166.82,166.81,7.57644443]
[1747497779942,4.35920964,166.82,166.81,1.5816]
[1747497780145,4.35920964,166.82,166.81,7.57644443]
[1747497780446,4.35920964,166.82,166.81,1.5816]
[1747497780620,2.69260964,166.82,166.81,7.57644443]
[1747497780822,20.06599,166.87,166.81,7.57644443]
[1747497781036,20.06599,166.87,166.81,22.56355551]
[1747497781423,19.84,166.87,166.81,22.56355551]
[1747497782425,19.84,166.87,166.82,6.5194]
[1747497783656,19.84,166.87,166.83,20.97944014]
[1747497785449,19.84,166.87,166.83,5.99412575]
[1747497789649,19.84,166.87,166.82,6.5194]
[1747497789828,19.84,166.87,166.82,12.51374171]
[1747497790156,25.8327755,166.87,166.82,12.51374171]
[1747497791236,25.8327755,166.87,166.82,6.5194]
[1747497792058,18.64964886,166.86,166.82,6.5194]
[1747497792265,18.64964886,166.86,166.78,5.99563803]
[1747497793138,5.99340725,166.85,166.78,5.99563803]
[1747497793466,5.99340725,166.85,166.77,14.01689233]
[1747497794055,18.64964886,166.84,166.77,8.0207]
[1747497795163,5.99412575,166.83,166.77,8.0207]
[1747497795663,5.99384936,166.84,166.77,14.01686293]
[1747497796031,5.99384936,166.84,166.77,8.0207]
[1747497797553,136.2,166.83,166.77,8.0207]
[1747497798763,18.64964886,166.82,166.74,5.99736116]
[1747497799058,19.8,166.81,166.74,5.99736116]
[1747497799249,154.84964886,166.8,166.73,8.0207]
[1747497799443,136.2,166.79,166.73,40.01831714]
[1747497799662,19.78,166.84,166.73,55.0126193]
[1747497801265,19.8,166.84,166.76,26.0]
[1747497801450,19.8,166.84,166.78,1.5076]
[1747497801762,19.8,166.84,166.8,26.0]
[1747497802352,136.2,166.87,166.8,26.0]
[1747497802674,136.2,166.87,166.83,6.5131]
[1747497802842,98.5244329,166.88,166.83,6.5131]
[1747497803181,24.05587185,166.92,166.84,1.5076]
[1747497803749,24.05587185,166.92,166.85,5.99340725]
[1747497804255,19.8,166.92,166.85,5.99340725]
[1747497804744,25.79097324,166.92,166.84,1.5076]
[1747497805261,19.8,166.91,166.84,1.5076]
[1747497805865,5.99161174,166.9,166.84,1.5076]
[1747497808175,5.99161174,166.9,166.84,7.50135411]
[1747497808477,5.99161174,166.9,166.84,1.5076]
[1747497809775,20.97064109,166.9,166.83,6.5131]
[1747497809976,18.64964886,166.89,166.8,1.5904]
[1747497810172,5.99268891,166.87,166.8,1.5904]
[1747497810373,5.99268891,166.87,166.8,7.5855375]
[1747497810773,136.2,166.88,166.8,7.5855375]
[1747497811080,19.8,166.91,166.82,26.0]
[1747497811458,4.42179077,166.9,166.82,26.0]
[1747497811779,8.84328984,166.9,166.8,48.57354709]
[1747497812358,10.41357195,166.9,166.8,48.57354709]
[1747497812558,5.99178118,166.9,166.8,48.57354709]
[1747497812753,25.79135469,166.91,166.8,48.57354709]
[1747497815170,155.98,166.93,166.83,26.0]
[1747497815481,19.84,166.92,166.84,6.3554]
[1747497816277,19.84,166.92,166.85,5.99340725]
[1747497817152,155.98,166.93,166.85,20.97692538]
[1747497817370,19.88,166.92,166.85,20.97692538]
[1747497818267,155.98,166.93,166.85,20.97692538]
[1747497818578,175.86,166.93,166.85,20.97692538]
[1747497819748,19.86,166.92,166.85,20.97692538]
[1747497820879,155.98,166.93,166.85,20.97692538]
[1747497821052,175.82,166.93,166.85,20.97692538]
[1747497821454,19.84,166.93,166.87,1.5622]
[1747497821870,136.2,166.97,166.87,1.5622]
[1747497822075,19.82,166.96,166.87,1.5622]
[1747497822592,19.88,166.99,166.92,26.0]
[1747497823098,160.33587185,167.01,166.93,7.9574]
[1747497823966,24.13587185,167.01,166.93,7.9574]
[1747497824198,24.13587185,167.01,166.96,26.0]
[1747497824363,19.88,167.01,166.96,26.0]
[1747497824859,19.88,167.01,166.97,5.98909983]
[1747497825057,39.68,167.04,166.97,5.98909983]
[1747497826271,19.9,167.04,166.97,20.96184942]
[1747497833573,19.9,167.04,167.0,26.0]
[1747497835298,19.82,167.08,167.01,5.9876654]
[1747497836597,19.78,167.09,167.01,28.68572892]